[Event "Chess Ladies Graz 2024"]
[Site "Graz"]
[Date "2024.02.28"]
[Round "4.3"]
[White "Bodnaruk, Anastasia"]
[Black "Schloffer, Jasmin-Denise"]
[Result "1-0"]
[ECO "B12"]
[WhiteElo "2340"]
[BlackElo "2178"]
[Annotator "TA"]
[PlyCount "123"]
[EventDate "2024.02.25"]
[EventType "tourn"]
[EventCountry "AUT"]
[SourceTitle "playchess.com"]
[Source "ChessBase"]
[SourceQuality "1"]
[TimeControl "40/5400+30:1800+30"]

{[%evp 25,123,-148,-4,-58,0,0,0,0,0,0,50,39,0,33,29,20,6,14,69,47,64,65,66,0,0,0,0,18,119,110,204,204,240,241,233,0,239,223,237,224,237,260,283,277,281,247,254,0,259,239,270,106,71,0,0,0,0,0,0,0,0,0,0,0,0,0,0,0,0,0,0,0,0,0,0,0,0,0,0,0,0,-8,-8,-8,-8,-8,-8,-8,29984,29985,29985,29986,29990,29991,29992,29993,29993,29994,29996,5106]} 1. e4 {[%emt 0:00:57]} c6 {[%emt 0:00:05]} 2. d4 {[%emt 0:01:26]} d5 {[%emt 0:00:06]} 3. f3 {[%emt 0:01:18]} dxe4 {[%emt 0:00:23]} 4. fxe4 {[%emt 0:00:41]} e5 {[%emt 0:00:06]} 5. Nf3 {[%emt 0:01:34]} Bg4 {[%emt 0:00:06]} 6. Bc4 {[%emt 0:03:01]} Nd7 {[%emt 0:00:07]} 7. c3 {[%emt 0:04:17] B12: Caro-Kann (Vorstoß-Variante).} Bd6 {[%emt 0:01:48] wohl besser als 7...Bh5.} 8. Qb3 {[%emt 0:09:40]} Qe7 {[%emt 0:01:08]} 9. Qxb7 {[%emt 0:05:39]} Rb8 {[%emt 0:03:10]} 10. Qxc6 {[%emt 0:00:09]} Bxf3 {[%emt 0:24:04]} 11. gxf3 {[%emt 0:00:08]} Ngf6 {[%emt 0:04:27]} 12. Be3 $146 {[%emt 0:06:17]} ({Predecessor:} 12. Nd2 O-O 13. Bb3 Rfc8 14. Qa6 exd4 15. cxd4 Bb4 16. Qd3 Nh5 17. Qe3 Qh4+ 18. Qf2 Rxc1+ 19. Rxc1 Bxd2+ 20. Ke2 Nf4+ {0-1 Malicka,M (2311)-Vazquez,G (2534) US Collegiate Rapid 2021 (5.117)}) 12... O-O {[%emt 0:03:07]} 13. Nd2 {[%emt 0:04:06]} ({Vorzuziehen ist} 13. Bb3 exd4 14. Bxd4) 13... Rxb2 {[%emt 0:11:46]} (13... exd4 $17 14. cxd4 Rb6) 14. Bb3 {[%emt 0:02:39]} (14. O-O $11) 14... exd4 {[%emt 0:11:29]} (14... Nb6 $1 $15 15. dxe5 Qxe5) 15. cxd4 $11 {[%emt 0:00:20]} Bb4 {[%emt 0:00:18]} 16. Rc1 {[%emt 0:13:32]} Nb6 {[%emt 0:07:19]} 17. Ke2 {[%emt 0:07:44]} Nh5 {[%emt 0:05:33]} (17... Ng4 $1 $11 18. fxg4 Bxd2 19. Bxd2 Qg5) 18. Rc2 $1 $14 {[%emt 0:07:04]} Rxc2 {[%emt 0:01:00]} 19. Qxc2 {[%emt 0:00:02]} Rc8 {[%emt 0:01:25]} 20. Qb1 {[%emt 0:03:18]} Rc3 $1 {[%emt 0:05:41]} 21. Qg1 {[%emt 0:01:55]} (21. Rc1 $2 Rxe3+ 22. Kd1 Nf4 $19) 21... Qd7 {[%emt 0:05:26]} (21... g6 $11) 22. Qg5 $14 {[%emt 0:02:30]} g6 $1 {[%emt 0:01:26]} 23. Rg1 $1 {[%emt 0:03:49]} Ng7 {[%emt 0:00:42]} 24. h4 {[%emt 0:06:29]} ({Günstiger ist} 24. Rb1 $14 Bf8 25. Qg4) 24... Ne6 $11 {[%emt 0:03:26]} 25. Bxe6 {[%emt 0:02:27]} Qxe6 {[%emt 0:00:21]} 26. h5 {[%emt 0:03:07]} Qc8 {[%emt 0:01:39]} (26... Rc2 $11 27. Rb1 (27. Qd8+ Bf8 $11) 27... Qc4+ 28. Kd1 Rxd2+ 29. Bxd2 Qf1+ 30. Kc2 Qc4+ 31. Kd1 Qf1+ 32. Kc2 Qc4+ 33. Kd1) 27. hxg6 $16 {[%emt 0:01:18]} hxg6 {[%emt 0:02:24]} (27... Qa6+ $16 28. Kf2 fxg6) 28. Rh1 $1 $18 {[%emt 0:02:53]} Bf8 {[%emt 0:01:06]} 29. Qh4 $1 {[%emt 0:02:36]} Bg7 {[%emt 0:01:58]} 30. Qh7+ $1 {[%emt 0:00:28]} Kf8 {[%emt 0:00:05]} 31. Bh6 $1 {[%emt 0:00:29]} Bxh6 {[%emt 0:00:06]} 32. Qxh6+ {[%emt 0:00:31]} (32. Rxh6 Qa6+ 33. Kf2 Qd3 34. Qh8+ Ke7 35. Qe5+ Kd7 $15) 32... Ke7 {[%emt 0:00:18]} 33. Qg5+ {[%emt 0:00:30]} Kd7 {[%emt 0:00:23]} 34. Rh7 {[%emt 0:01:48]} Qa6+ {[%emt 0:01:09]} 35. Kf2 {[%emt 0:00:11]} Qxa2 {[%emt 0:00:07]} 36. Kg3 $2 {[%emt 0:02:26]} (36. d5 $1 $18) 36... Qe6 $2 {[%emt 0:01:31][%mdl 8192]} (36... Kc6 $1 $11) 37. Qb5+ $18 {[%emt 0:00:57]} Kc7 {[%emt 0:01:01] [#]} 38. Qa5 $2 {[%emt 0:00:38]} (38. e5 $1 $18 {ist der präzise Gewinnweg. Droht Qa5 und aus.} Qd7 39. Qb4 (39. Qxd7+ Kxd7 40. Rxf7+ Kd8 $18)) 38... Qd6+ $16 {[%emt 0:01:11] [#]} 39. e5 {[%emt 0:00:09]} (39. Qe5 $1 $16 Qxe5+ 40. dxe5) 39... Qxd4 $11 {[%emt 0:00:14]} 40. Rxf7+ {[%emt 0:00:37]} Kc6 {[%emt 0:00:38]} 41. Rf6+ {[%emt 0:02:05]} (41. Ne4 $5 Qg1+ $8 42. Kh3 Qh1+ 43. Kg4 Qg2+ 44. Kh4 (44. Ng3 Rc4+ 45. f4 g5 $11) 44... Qh1+ 45. Kg4 Qg2+ 46. Kh4 (46. Ng3 Rc4+ 47. f4 g5 $11) 46... Qh2+ 47. Kg4 Qg2+ $11) 41... Kb7 {[%emt 0:01:55]} 42. Ne4 {[%emt 0:13:49]} Qg1+ {[%emt 0:03:48]} 43. Kh4 {[%emt 0:02:20]} Qh1+ {[%emt 0:04:37]} 44. Kg4 {[%emt 0:00:38]} Qg1+ {[%emt 0:00:49]} 45. Ng3 {[%emt 0:04:51]} Rc4+ {[%emt 0:04:21]} 46. f4 {[%emt 0:02:13]} g5 {[%emt 0:01:24]} 47. Rf7+ {[%emt 0:03:54]} Kc6 {[%emt 0:00:45]} 48. Qa3 {[%emt 0:03:08]} (48. Rxa7 Rxf4+ 49. Kh5 Qxg3 $19) 48... Rxf4+ {[%emt 0:02:50]} 49. Rxf4 {[%emt 0:00:02]} (49. Kxg5 $2 {verliert.} Rxf7 50. Qc3+ Qc5 51. Qxc5+ Kxc5 $19) 49... gxf4 {[%emt 0:00:08]} 50. Qd6+ {[%emt 0:00:02]} Kb5 {[%emt 0:02:11]} 51. Kxf4 {[%emt 0:00:09]} Qf2+ {[%emt 0:00:07]} 52. Kg4 {[%emt 0:00:04]} Qc5 {[%emt 0:00:51]} 53. Qxc5+ {[%emt 0:03:23]} Kxc5 {[%emt 0:00:14]} 54. Kf5 {[%emt 0:00:29]} a5 {[%emt 0:04:01]} 55. Ne4+ {[%emt 0:00:24]} Kc6 {[%emt 0:00:50]} 56. Nc3 {[%emt 0:00:37]} Nd5 $2 {[%emt 0:04:09][%mdl 8192]} (56... a4 $11) 57. Nxd5 {[%emt 0:00:28]} Kxd5 {[%emt 0:00:05]} 58. e6 {[%emt 0:00:03]} Kc4 {[%emt 0:00:47]} 59. e7 {[%emt 0:00:04]} Kb3 {[%emt 0:00:06]} 60. e8=Q {[%emt 0:00:04]} ({Minderwertig wäre} 60. e8=B Kc4 $11) 60... a4 {[%emt 0:00:03]} 61. Qb5+ {[%emt 0:00:11]} Ka3 {[%emt 0:00:04]} 62. Ke4 {[%emt 0:00:05]} 1-0

[Event "Chess Ladies Graz 2024"]
[Site "Graz"]
[Date "2024.02.28"]
[Round "4.4"]
[White "Mayrhuber, Nikola"]
[Black "Froewis, Annika"]
[Result "0-1"]
[ECO "E04"]
[WhiteElo "1980"]
[BlackElo "2133"]
[Annotator "RC"]
[PlyCount "58"]
[EventDate "2024.02.25"]
[EventType "tourn"]
[EventCountry "AUT"]
[SourceTitle "playchess.com"]
[Source "ChessBase"]
[SourceQuality "1"]
[TimeControl "40/5400+30:1800+30"]

1. d4 {[%emt 0:00:02]} Nf6 {[%emt 0:00:05]} 2. c4 {[%emt 0:00:04]} e6 {[%emt 0:00:05]} 3. Nf3 {[%emt 0:00:17]} d5 {[%emt 0:00:13]} 4. g3 {[%emt 0:00:12]} dxc4 {[%emt 0:00:16]} 5. Bg2 {[%emt 0:00:07]} Bd7 {[%emt 0:00:12]} 6. Ne5 {[%emt 0:08:14]} Bc6 {[%emt 0:00:11]} 7. Nxc6 {[%emt 0:01:30]} Nxc6 {[%emt 0:00:06]} 8. O-O {[%emt 0:00:30]} Qd7 {[%emt 0:00:16]} 9. Nc3 {[%emt 0:16:00]} O-O-O {[%emt 0:01:41]} 10. Qa4 {[%emt 0:05:27]} Nd5 {[%emt 0:04:54]} 11. Qxc4 {[%emt 0:09:15]} h5 {[%emt 0:03:18]} 12. e3 {[%emt 0:13:35]} g5 {[%emt 0:02:27]} 13. Ne4 {[%emt 0:02:50]} g4 {[%emt 0:14:37]} 14. Bd2 {[%emt 0:05:05]} f5 {[%emt 0:08:08]} 15. Nc5 {[%emt 0:00:53]} Bxc5 {[%emt 0:01:48]} 16. Qxc5 {[%emt 0:00:10]} h4 {[%emt 0:00:51]} 17. b4 {[%emt 0:01:27]} Kb8 {[%emt 0:18:27]} 18. b5 {[%emt 0:01:08]} Nce7 {[%emt 0:00:15]} 19. a4 {[%emt 0:02:19]} hxg3 {[%emt 0:02:34]} 20. hxg3 {[%emt 0:00:08]} Rh5 {[%emt 0:06:30]} 21. Qc4 {[%emt 0:03:16]} Rdh8 {[%emt 0:01:58]} 22. Rfc1 {[%emt 0:01:15]} Nc8 {[%emt 0:03:15]} 23. Kf1 {[%emt 0:10:46]} Rh2 {[%emt 0:02:38]} 24. Be1 {[%emt 0:05:42]} Nd6 {[%emt 0:04:52]} 25. Qb3 {[%emt 0:06:21]} Nf6 {[%emt 0:10:34]} 26. Rc6 {[%emt 0:04:24]} Rxg2 {[%emt 0:05:44]} 27. Kxg2 {[%emt 0:02:12]} Qh7 {[%emt 0:00:05]} 28. Bc3 {[%emt 0:00:39]} Qh3+ {[%emt 0:00:18]} 29. Kg1 {[%emt 0:00:09]} Qh1# {[%emt 0:00:05]} 0-1

[Event "Chess Ladies Graz 2024"]
[Site "Graz"]
[Date "2024.02.28"]
[Round "4.5"]
[White "Brunello, Marina"]
[Black "Atalik, Ekaterina"]
[Result "1/2-1/2"]
[ECO "B12"]
[WhiteElo "2345"]
[BlackElo "2405"]
[Annotator "TA"]
[PlyCount "94"]
[EventDate "2024.02.25"]
[EventType "tourn"]
[EventCountry "AUT"]
[SourceTitle "playchess.com"]
[Source "ChessBase"]
[SourceQuality "1"]
[TimeControl "40/5400+30:1800+30"]

{[%evp 19,94,16,26,14,21,48,39,33,52,-44,-24,-47,-37,-31,-14,-12,-2,-6,-8,-7,-6,-6,-16,-39,-44,-53,-41,-75,0,0,0,0,0,-34,-14,-94,0,-91,0,-12,-9,-13,9,0,12,0,0,0,0,-23,-6,-47,-56,-310,-308,-264,-19,-35,-25,-16,0,0,0,0,0,0,0,0,0,0,30,0,0,0,0,0,0]} 1. e4 {[%emt 0:04:40]} c6 {[%emt 0:00:14]} 2. d4 {[%emt 0:00:09]} d5 {[%emt 0:00:13]} 3. e5 {[%emt 0:00:04]} c5 {[%emt 0:00:21]} 4. Nf3 {[%emt 0:00:09]} cxd4 {[%emt 0:00:38]} 5. Nxd4 {[%emt 0:00:09]} Nc6 {[%emt 0:01:23]} 6. Nxc6 {[%emt 0:00:04] B12: Caro-Kann: Advance Variation.} bxc6 {[%emt 0:00:05]} 7. Bd3 {[%emt 0:00:03]} e6 {[%emt 0:01:13]} 8. O-O {[%emt 0:00:30]} Ne7 {[%emt 0:00:21]} 9. Nd2 {[%emt 0:00:04]} Ng6 {[%emt 0:00:22]} 10. Nf3 {[%emt 0:00:03]} Be7 {[%emt 0:00:50]} 11. c3 {[%emt 0:00:07]} O-O {[%emt 0:00:56]} 12. Qa4 {[%emt 0:00:06]} c5 {[%emt 0:06:36]} 13. Qg4 {[%emt 0:00:08]} Rb8 $146 {[%emt 0:06:34]} ({Predecessor:} 13... Kh8 14. Qh5 Qb6 15. Bg5 Ba6 16. Bxa6 Qxa6 17. Bxe7 Nxe7 18. Ng5 h6 19. Nxf7+ Kh7 {½-½ Kollars,D (2598)-Gallasch,R (2067) GER-chT Online Liga Playoffs rapid 2021 (3.4)}) 14. Qh5 {[%emt 0:06:02]} (14. b3 $14) 14... Rb6 {[%emt 0:08:34]} 15. Rd1 {[%emt 0:08:01]} Ba6 {[%emt 0:08:29]} 16. Bc2 {[%emt 0:07:05]} Be2 {[%emt 0:10:20]} 17. Re1 {[%emt 0:00:04]} Bxf3 {[%emt 0:01:19]} 18. Qxf3 {[%emt 0:00:04]} Bg5 {[%emt 0:00:42]} 19. b3 {[%emt 0:17:57]} Bxc1 {[%emt 0:19:29]} 20. Raxc1 {[%emt 0:00:04]} Qg5 {[%emt 0:00:17]} 21. Qe2 {[%emt 0:01:52]} Nf4 {[%emt 0:04:28]} 22. Qf3 {[%emt 0:00:05]} f5 {[%emt 0:03:42]} 23. exf6 {[%emt 0:03:33]} Rxf6 {[%emt 0:01:53]} ({Black should play} 23... e5 $17 {White must now prevent ...e4.} 24. g3 Nh3+ (24... gxf6 $2 25. Kh1 $18) (24... Rfxf6 25. h4 $16) (24... Rbxf6 25. Kh1 $11) 25. Kh1 e4 (25... Rfxf6 $2 26. Qxd5+ Rbe6 27. f3 $18)) 24. Rcd1 $11 {[%emt 0:00:16]} Rb8 {[%emt 0:01:47]} 25. Qg3 {[%emt 0:01:37]} Qh5 {[%emt 0:03:24]} 26. Kh1 {[%emt 0:04:49]} Rbf8 {[%emt 0:00:58]} 27. f3 {[%emt 0:00:22]} (27. Rd2 $11 {remains equal.}) 27... Rh6 {[%emt 0:01:59]} (27... e5 $17 {[%cal Oe5e4] Hoping for ...e4!} 28. c4 e4) 28. a3 {[%emt 0:06:16]} (28. c4 $11) 28... a5 {[%emt 0:01:40]} (28... e5 $17 {[%cal Oe5e4] Strongly threatening ...e4!} 29. Rd2 e4 30. fxe4 Ne2 (30... Rg6 31. Qf3 $16) 31. Rdxe2 (31. Rexe2 $2 Rf1#) 31... Qxe2) 29. b4 {[%emt 0:01:21]} axb4 {[%emt 0:00:42]} 30. axb4 {[%emt 0:00:04]} c4 {[%emt 0:01:09]} 31. Ra1 {[%emt 0:02:56]} Qf7 {[%emt 0:01:58]} 32. Qf2 {[%emt 0:00:23]} Qf6 {[%emt 0:00:35]} 33. Ra3 {[%emt 0:01:10]} Rh5 {[%emt 0:03:06]} 34. Bb1 {[%emt 0:06:54]} Re5 {[%emt 0:03:34]} 35. Rxe5 {[%emt 0:03:06]} Qxe5 {[%emt 0:00:05]} 36. Qh4 $2 {[%emt 0:00:10][%mdl 8192]} ({Only move:} 36. Qd2 $1 $15) 36... h6 $19 {[%emt 0:00:38]} 37. Qf2 {[%emt 0:00:05]} Nd3 $2 {[%emt 0:01:26]} (37... Ne2 $19 38. Qe1 Qe3) 38. Qd2 $1 $11 {[%emt 0:00:47]} Qf5 {[%emt 0:02:30]} 39. Ra5 $1 {[%emt 0:07:51]} Nf2+ {[%emt 0:03:58]} 40. Qxf2 {[%emt 0:00:05]} Qxb1+ {[%emt 0:00:04]} 41. Qg1 {[%emt 0:30:03]} Qc2 {[%emt 0:31:03]} 42. Qe1 {[%emt 0:00:12]} Rf6 {[%emt 0:00:53]} 43. Ra1 {[%emt 0:05:22]} Rg6 {[%emt 0:00:00]} 44. g3 {[%emt 0:00:00]} Qf5 {[%emt 0:00:00]} 45. Kg2 {[%emt 0:00:00]} Qc2+ {[%emt 0:00:00]} 46. Kg1 {[%emt 0:00:00]} Qd3 {[%emt 0:00:00]} 47. Kg2 {[%emt 0:00:00]} Qc2+ {[%emt 0:00:00]} 1/2-1/2

[Event "Chess Ladies Graz 2024"]
[Site "Graz"]
[Date "2024.02.28"]
[Round "5.1"]
[White "Atalik, Ekaterina"]
[Black "Daulyte-Cornette, Deimante"]
[Result "1/2-1/2"]
[ECO "A36"]
[WhiteElo "2405"]
[BlackElo "2372"]
[Annotator "TA"]
[PlyCount "24"]
[EventDate "2024.02.25"]
[EventType "tourn"]
[EventCountry "AUT"]
[SourceTitle "playchess.com"]
[Source "ChessBase"]
[SourceQuality "1"]
[TimeControl "40/5400+30:1800+30"]

{[%evp 9,24,10,13,13,16,18,15,15,33,30,25,28,24,30,41,9,29]} 1. c4 {[%emt 0:00:03]} c5 {[%emt 0:00:11]} 2. Nc3 {[%emt 0:00:15]} Nf6 {[%emt 0:00:49]} 3. e4 {[%emt 0:00:33]} Nc6 {[%emt 0:01:35]} 4. g3 {[%emt 0:01:42]} e5 {[%emt 0:02:26]} 5. Bg2 {[%emt 0:00:27]} d6 {[%emt 0:00:28]} 6. d3 {[%emt 0:01:18]} Bg4 {[%emt 0:02:09]} 7. f3 {[%emt 0:00:55]} Be6 {[%emt 0:00:13]} 8. Nge2 {[%emt 0:00:20]} g6 {[%emt 0:02:25]} 9. O-O {[%emt 0:02:19]} Bg7 {[%emt 0:00:28]} 10. Be3 {[%emt 0:02:48]} Qd7 {[%emt 0:03:50]} 11. Qd2 {[%emt 0:01:00]} h5 {[%emt 0:07:55]} 12. h4 {[%emt 0:01:06]} Nd4 {[%emt 0:12:45] Weighted Error Value: White=0.05 (flawless) /Black=0.04 (flawless) .  Inaccurate:     	White=1     	---        OK:         	White=2     	Black=1} 1/2-1/2

[Event "Chess Ladies Graz 2024"]
[Site "Graz"]
[Date "2024.02.28"]
[Round "5.2"]
[White "Froewis, Annika"]
[Black "Brunello, Marina"]
[Result "1/2-1/2"]
[ECO "B90"]
[WhiteElo "2133"]
[BlackElo "2345"]
[Annotator "TA"]
[PlyCount "74"]
[EventDate "2024.02.25"]
[EventType "tourn"]
[EventCountry "AUT"]
[SourceTitle "playchess.com"]
[Source "ChessBase"]
[SourceQuality "1"]
[TimeControl "40/5400+30:1800+30"]

{[%evp 15,74,6,27,20,26,15,31,27,41,16,23,26,30,31,44,1,18,9,33,0,23,-20,0,0,0,-14,5,-22,-20,-17,0,-8,-8,-8,-14,-68,-47,-68,-9,-7,-14,-46,-34,-45,-36,-116,-79,-253,-242,-242,-241,-237,0,0,0,0,0,0,0,0,0]} 1. e4 {[%emt 0:00:02]} c5 {[%emt 0:03:57]} 2. Nf3 {[%emt 0:00:06]} d6 {[%emt 0:00:05]} 3. d4 {[%emt 0:00:05]} cxd4 {[%emt 0:00:04]} 4. Nxd4 {[%emt 0:00:06]} Nf6 {[%emt 0:00:04]} 5. Nc3 {[%emt 0:00:08]} a6 {[%emt 0:00:03]} 6. Be3 {[%emt 0:00:18]} e5 {[%emt 0:00:10]} 7. Nb3 {[%emt 0:00:06]} Be6 {[%emt 0:00:09]} 8. f3 {[%emt 0:00:20]} h5 {[%emt 0:00:05]} 9. Nd5 {[%emt 0:00:14]} Bxd5 {[%emt 0:00:26]} 10. exd5 {[%emt 0:00:06]} Nbd7 {[%emt 0:01:44][%cal Bb8d7,Bd7b6,Bb6d5][%mdl 32]} 11. Qd2 {[%emt 0:00:35] White is slightly better.} g6 {[%emt 0:00:18]} 12. O-O-O {[%emt 0:00:20]} Nb6 {[%emt 0:00:15]} 13. Kb1 {[%emt 0:08:04]} Nbxd5 {[%emt 0:05:28]} 14. Bg5 {[%emt 0:00:37] [#] And now Qxd5 would win.} Be7 $1 {[%emt 0:00:05]} 15. Bd3 {[%emt 1:26:53][%mdl 1024] White has compensation.} Rc8 {[%emt 0:23:32]} 16. Rhe1 {[%emt 0:00:00]} Kf8 {[%emt 0:05:01]} 17. h3 {[%emt 0:00:00]} Kg7 {[%emt 0:01:17]} 18. f4 {[%emt 0:00:00]} Nxf4 {[%emt 0:10:09]} 19. Bxf4 {[%emt 0:00:00]} exf4 {[%emt 0:00:07]} 20. Qxf4 {[%emt 0:00:00]} h4 {[%emt 0:00:34]} (20... Nh7 {keeps more tension.} 21. Be4 Qc7 22. Rf1 Bg5) 21. Qd4 {[%emt 0:00:00]} d5 {[%emt 0:04:45]} 22. Re5 {[%emt 0:00:00]} (22. Re3 {is more complex.} Rc6 23. Rf1 Rh5 24. c3) 22... Kg8 {[%emt 0:07:45]} (22... Qd6 {feels hotter.} 23. Rf1 Bd8 24. c4 Bb6) 23. Rf1 {[%emt 0:00:00][%cal Oe5e7]} Bf8 {[%emt 0:01:37]} 24. Qf2 {[%emt 0:00:00]} Bg7 {[%emt 0:00:11]} 25. Nd4 {[%emt 0:00:00]} (25. a3 $11) 25... Qc7 {[%emt 0:07:34]} 26. Re2 {[%emt 0:00:00]} Qg3 {[%emt 0:09:57]} ({Black should play} 26... Nh5 $1 $15 27. Rd1 Qg3) 27. Qxg3 $11 {[%emt 0:00:00]} hxg3 {[%emt 0:00:05]} 28. Re7 {[%emt 0:00:00]} Rh4 {[%emt 0:01:06]} 29. Nf3 {[%emt 0:02:38]} Rb4 {[%emt 0:00:29]} 30. Ng5 {[%emt 0:01:34] Repels Ne4} (30. a3 $1 $15 Rb6 31. Ng5) 30... Ne4 {[%emt 0:05:40]} 31. Bxe4 {[%emt 0:02:53]} (31. Nxe4 $17 dxe4 (31... Bxb2 32. Nd6 $15) 32. Bxe4 (32. Rfxf7 $2 {loses.} Bxb2 33. Bxe4 Be5+ 34. Kc1 Rxe4 $19)) 31... Rxb2+ $19 {[%emt 0:01:08]} 32. Kc1 {[%emt 0:00:06][%cal Oe4g6] [#] Black must now prevent Bxg6!} dxe4 {[%emt 0:00:04]} 33. Rfxf7 {[%emt 0:01:15]} Rcxc2+ $2 {[%emt 0:00:38]} (33... Rbxc2+ $19 34. Kd1 Rc1+ 35. Ke2 R8c2+ 36. Ke3 Re1+ 37. Kf4 Bf8) 34. Kd1 $11 {[%emt 0:00:04] Threatening mate with Re8+. The position is equal.} Rd2+ {[%emt 0:00:35]} 35. Kc1 {[%emt 0:00:51] Intending Re8+ and mate.} Rdc2+ {[%emt 0:05:09]} 36. Kd1 {[%emt 0:00:02] Really sharp!} Rd2+ {[%emt 0:00:03]} 37. Kc1 {[%emt 0:00:05] White threatens Re8+ and mate.} Rdc2+ {[%emt 0:00:35] Weighted Error Value: White=0.26 (precise) /Black=0.18 (very precise) .  Loses game:     	White=1     	---        Missed win:     	---       	Black=1      Mistake:       	White=2     	Black=1      Inaccurate:     	White=3     	Black=1      OK:         	White=5     	Black=10     Best:        	White=4     	Black=2      Strong:       	---       	Black=1} 1/2-1/2

[Event "Chess Ladies Graz 2024"]
[Site "Graz"]
[Date "2024.02.28"]
[Round "5.3"]
[White "Schloffer, Jasmin-Denise"]
[Black "Mayrhuber, Nikola"]
[Result "1-0"]
[ECO "E20"]
[WhiteElo "2178"]
[BlackElo "1980"]
[Annotator "RC"]
[PlyCount "87"]
[EventDate "2024.02.25"]
[EventType "tourn"]
[EventCountry "AUT"]
[SourceTitle "playchess.com"]
[Source "ChessBase"]
[SourceQuality "1"]
[TimeControl "40/5400+30:1800+30"]

1. d4 {[%emt 0:00:03]} Nf6 {[%emt 0:00:03]} 2. c4 {[%emt 0:00:04]} e6 {[%emt 0:00:02]} 3. Nc3 {[%emt 0:00:04]} Bb4 {[%emt 0:00:05]} 4. f3 {[%emt 0:00:03]} c5 {[%emt 0:08:52]} 5. d5 {[%emt 0:00:06]} O-O {[%emt 0:03:20]} 6. e4 {[%emt 0:01:34]} exd5 {[%emt 0:08:55]} 7. exd5 {[%emt 0:05:24]} Re8+ {[%emt 0:03:47]} 8. Kf2 {[%emt 0:00:10]} Bxc3 {[%emt 0:02:44]} 9. bxc3 {[%emt 0:00:06]} d6 {[%emt 0:00:43]} 10. Ne2 {[%emt 0:02:47]} Nbd7 {[%emt 0:00:36]} 11. Nf4 {[%emt 0:05:24]} Ne5 {[%emt 0:02:53]} 12. Be2 {[%emt 0:00:38]} g5 {[%emt 0:10:47]} 13. Nd3 {[%emt 0:10:56]} Nxc4 {[%emt 0:20:34]} 14. Nxc5 {[%emt 0:03:30]} Qb6 {[%emt 0:01:29]} 15. Bxc4 {[%emt 0:01:00]} Qxc5+ {[%emt 0:01:32]} 16. Qd4 {[%emt 0:00:05]} Qxd4+ {[%emt 0:02:57]} 17. cxd4 {[%emt 0:00:05]} g4 {[%emt 0:02:01]} 18. Bg5 {[%emt 0:06:28]} Kg7 {[%emt 0:00:19]} 19. Bb5 {[%emt 0:02:14]} Rd8 {[%emt 0:02:39]} 20. h3 {[%emt 0:03:38]} a6 {[%emt 0:06:00]} 21. Bd3 {[%emt 0:01:10]} g3+ {[%emt 0:06:20]} 22. Kxg3 {[%emt 0:01:01]} Rg8 {[%emt 0:03:36]} 23. Bxf6+ {[%emt 0:01:51]} Kxf6+ {[%emt 0:00:02]} 24. Kf2 {[%emt 0:00:08]} Bf5 {[%emt 0:02:22]} 25. Be4 {[%emt 0:01:51]} b5 {[%emt 0:00:48]} 26. a4 {[%emt 0:06:59]} Rac8 {[%emt 0:01:30]} 27. Rhc1 {[%emt 0:01:02]} Bxe4 {[%emt 0:05:59]} 28. fxe4 {[%emt 0:00:10]} h5 {[%emt 0:01:06]} 29. axb5 {[%emt 0:06:56]} axb5 {[%emt 0:00:23]} 30. Rxc8 {[%emt 0:00:38]} Rxc8 {[%emt 0:00:02]} 31. Ra6 {[%emt 0:00:13]} Ke7 {[%emt 0:01:59]} 32. Ra7+ {[%emt 0:00:30]} Kf6 {[%emt 0:00:38]} 33. Rd7 {[%emt 0:00:32]} Rc2+ {[%emt 0:01:05]} 34. Kf3 {[%emt 0:00:05]} Rc3+ {[%emt 0:00:39]} 35. Kf4 {[%emt 0:00:17]} Rd3 {[%emt 0:00:35]} 36. Rxd6+ {[%emt 0:00:21]} Ke7 {[%emt 0:00:21]} 37. Rb6 {[%emt 0:00:05]} Rxd4 {[%emt 0:00:40]} 38. Rxb5 {[%emt 0:00:07]} Rd2 {[%emt 0:00:04]} 39. Rb7+ {[%emt 0:06:44]} Kf6 {[%emt 0:00:13]} 40. e5+ {[%emt 0:01:03]} Kg6 {[%emt 0:00:14]} 41. d6 {[%emt 0:31:05]} Rxg2 {[%emt 0:30:54]} 42. d7 {[%emt 0:00:08]} Rd2 {[%emt 0:00:05]} 43. Rb6+ {[%emt 0:00:04]} Kg7 {[%emt 0:01:12]} 44. Rd6 {[%emt 0:00:05]} 1-0

[Event "Chess Ladies Graz 2024"]
[Site "Graz"]
[Date "2024.02.28"]
[Round "5.4"]
[White "Mkrtchian, Lilit"]
[Black "Bodnaruk, Anastasia"]
[Result "1/2-1/2"]
[ECO "D02"]
[WhiteElo "2378"]
[BlackElo "2340"]
[Annotator "TA"]
[PlyCount "25"]
[EventDate "2024.02.25"]
[EventType "tourn"]
[EventCountry "AUT"]
[SourceTitle "playchess.com"]
[Source "ChessBase"]
[SourceQuality "1"]
[TimeControl "40/5400+30:1800+30"]

{[%evp 16,25,9,0,8,8,12,0,0,0,12,0]} 1. Nf3 {[%emt 0:00:10]} Nf6 {[%emt 0:00:58]} 2. g3 {[%emt 0:00:22]} g6 {[%emt 0:00:09]} 3. Bg2 {[%emt 0:00:12]} d5 {[%emt 0:00:25]} 4. d4 {[%emt 0:06:09]} Bg7 {[%emt 0:00:29]} 5. O-O {[%emt 0:00:18]} O-O {[%emt 0:00:05]} 6. c3 {[%emt 0:00:33]} c6 {[%emt 0:02:42]} 7. Nbd2 {[%emt 0:06:26]} Bf5 {[%emt 0:02:37]} 8. Nh4 {[%emt 0:01:11]} Be6 {[%emt 0:01:06]} 9. a4 {[%emt 0:07:45] The position is equal.} Qc8 {[%emt 0:03:01]} 10. Re1 {[%emt 0:04:53]} Bh3 {[%emt 0:01:16]} 11. Bh1 {[%emt 0:00:28]} Nbd7 {[%emt 0:02:45]} 12. Nhf3 {[%emt 0:16:37]} Bf5 {[%emt 0:04:37]} 13. a5 {[%emt 0:02:51] An uneventful encounter.   Weighted Error Value: White=0.05 (flawless) /Black=0.03 (flawless) .  OK:         	White=2     	Black=1} 1/2-1/2

[Event "Chess Ladies Graz 2024"]
[Site "Graz"]
[Date "2024.02.28"]
[Round "5.5"]
[White "Trippold, Denise"]
[Black "Polterauer, Chiara"]
[Result "1/2-1/2"]
[ECO "D90"]
[WhiteElo "2147"]
[BlackElo "2189"]
[Annotator "RC"]
[PlyCount "29"]
[EventDate "2024.02.25"]
[EventType "tourn"]
[EventCountry "AUT"]
[SourceTitle "playchess.com"]
[Source "ChessBase"]
[SourceQuality "1"]
[TimeControl "40/5400+30:1800+30"]

1. d4 {[%emt 0:00:05]} Nf6 {[%emt 0:00:03]} 2. c4 {[%emt 0:00:24]} g6 {[%emt 0:00:04]} 3. Nc3 {[%emt 0:00:15]} d5 {[%emt 0:00:11]} 4. Nf3 {[%emt 0:00:14]} Bg7 {[%emt 0:00:10]} 5. h4 {[%emt 0:00:22]} c6 {[%emt 0:00:16]} 6. cxd5 {[%emt 0:00:08]} cxd5 {[%emt 0:00:04]} 7. Bf4 {[%emt 0:00:25]} Nc6 {[%emt 0:01:05]} 8. e3 {[%emt 0:02:54]} O-O {[%emt 0:01:53]} 9. Ne5 {[%emt 0:00:28]} Ne4 {[%emt 0:17:06]} 10. Nxc6 {[%emt 0:33:41]} bxc6 {[%emt 0:00:14]} 11. Nxe4 {[%emt 0:06:10]} dxe4 {[%emt 0:00:05]} 12. Bc4 {[%emt 0:00:28]} c5 {[%emt 0:09:01]} 13. dxc5 {[%emt 0:14:54]} Qa5+ {[%emt 0:17:21]} 14. Qd2 {[%emt 0:00:43]} Qxc5 {[%emt 0:00:14]} 15. Rc1 {[%emt 0:00:46]} 1/2-1/2